bitfinex/quotes_BTCUSD_20250829
["timestamp","ask_amount","ask_price","bid_price","bid_amount"]
[1756485982193,0.21166843,109030.0,109020.0,0.18345257]
[1756485982397,0.20852843,109030.0,109020.0,0.73780846]
[1756485982610,0.20852843,109030.0,109020.0,0.74078846]
[1756485982822,0.20852843,109030.0,109020.0,0.74178846]
[1756485983062,0.20852843,109030.0,109020.0,0.73880846]
[1756485983291,0.20852843,109030.0,109020.0,0.73678846]
[1756485983513,0.21166843,109030.0,109020.0,0.73678846]
[1756485983873,0.21166843,109030.0,109020.0,0.18445257]
[1756485984105,0.02509268,109030.0,109020.0,0.73880846]
[1756485984693,0.02509268,109030.0,109020.0,0.74178846]
[1756485985411,0.20852843,109030.0,109020.0,0.73880846]
[1756485985603,0.04227654,109030.0,109020.0,0.73880846]
[1756485986963,0.04227654,109030.0,109020.0,0.74178846]
[1756485987391,0.1770876,109040.0,109030.0,0.18343575]
[1756485987811,0.1790676,109040.0,109030.0,0.18343575]
[1756485988409,0.1790676,109040.0,109020.0,0.73976846]
[1756485988608,0.1790676,109040.0,109030.0,0.18343575]
[1756485988833,0.1790676,109040.0,109020.0,0.73976846]
[1756485989042,0.18343575,109030.0,109020.0,0.73976846]
[1756485989257,0.18541575,109030.0,109020.0,0.74178846]
[1756485989457,0.00198,109030.0,109020.0,0.74078846]
[1756485990301,0.00198,109030.0,109020.0,0.74178846]
[1756485990598,0.1780876,109040.0,109030.0,0.18343575]
[1756485990872,0.19244412,109040.0,109020.0,0.74178846]
[1756485991349,0.19244412,109040.0,109030.0,0.18343575]
[1756485991557,0.19144412,109040.0,109030.0,0.18343575]
[1756485991759,0.19342412,109040.0,109020.0,0.73976846]
[1756485992928,0.73577164,109030.0,109020.0,0.001]
[1756485993178,0.18343575,109030.0,109010.0,0.62587589]
[1756485993401,0.18345257,109020.0,109010.0,0.62596312]
[1756485993617,0.18345257,109020.0,109010.0,0.62798312]
[1756485993823,0.18345257,109020.0,109010.0,0.07564723]
[1756485994025,0.18345257,109020.0,109010.0,0.62798312]
[1756485994656,0.18345257,109020.0,109010.0,0.62998312]
[1756485995178,0.18345257,109020.0,109010.0,0.63098312]
[1756485995595,0.56365683,109040.0,109010.0,0.63098312]
[1756485996032,0.60588201,109040.0,109010.0,0.63098312]
[1756485996772,0.60588201,109040.0,109010.0,0.62898312]
[1756485996977,0.60688201,109040.0,109010.0,0.62798312]
[1756485997801,0.60788201,109040.0,109010.0,0.62798312]
[1756485998000,0.05554612,109040.0,109010.0,0.62798312]
[1756485998250,0.56350683,109040.0,109020.0,0.00298]
[1756485998451,0.01117094,109040.0,109020.0,0.55531589]
[1756485999286,0.03413319,109040.0,109020.0,0.55733589]
[1756485999509,0.0513433,109040.0,109020.0,0.55733589]
[1756485999896,0.04217236,109040.0,109020.0,0.55733589]
[1756486000092,0.04025236,109040.0,109020.0,0.55733589]
[1756486000303,0.04125236,109040.0,109030.0,0.00298]
[1756486000498,0.04323236,109040.0,109030.0,0.00298]
[1756486000701,0.04315236,109040.0,109020.0,0.55233589]
[1756486000932,0.04415236,109040.0,109020.0,0.55531589]
[1756486001247,0.09880637,109040.0,109020.0,0.55531589]
[1756486001447,0.09881012,109040.0,109020.0,0.55531589]
[1756486001658,0.04415611,109040.0,109020.0,0.55531589]
[1756486002006,0.04315633,109040.0,109020.0,0.55531589]
[1756486002782,0.04315633,109040.0,109020.0,0.00298]
[1756486002984,0.04315633,109040.0,109020.0,0.55531589]
[1756486003194,0.04215633,109040.0,109030.0,0.005]
[1756486003343,0.02879913,109040.0,109030.0,0.005]
[1756486004167,0.02779913,109040.0,109030.0,0.005]
[1756486004351,0.02879913,109040.0,109030.0,0.005]
[1756486005174,0.02681913,109040.0,109030.0,0.55733589]
[1756486005401,0.02681913,109040.0,109030.0,0.62789589]
[1756486006242,0.02681913,109040.0,109030.0,0.98883471]
[1756486006459,0.02681913,109040.0,109030.0,1.07713103]
[1756486006659,0.02581913,109040.0,109030.0,1.07713103]
[1756486006869,0.02581913,109040.0,109030.0,1.07813103]
[1756486007068,0.02681913,109040.0,109030.0,1.07713103]
[1756486007266,0.02681913,109040.0,109030.0,1.09657975]
[1756486007484,0.02581913,109040.0,109030.0,1.10057975]
[1756486007861,0.02581913,109040.0,109030.0,1.10257975]
[1756486008437,0.02579937,109040.0,109030.0,1.01428343]
[1756486008609,0.02579937,109040.0,109030.0,0.99334461]
[1756486010331,0.02579937,109040.0,109030.0,0.44100872]
[1756486010554,0.02579937,109040.0,109030.0,0.99334461]
[1756486011436,0.02579937,109040.0,109030.0,0.44100872]
[1756486011643,0.02579937,109040.0,109030.0,0.99334461]
[1756486011869,0.01986542,109060.0,109030.0,0.99334461]
[1756486012071,0.67465515,109060.0,109030.0,0.08159]
[1756486012251,0.00198,109040.0,109030.0,0.63392589]
[1756486012652,0.00198,109040.0,109030.0,0.62992589]
[1756486012853,0.00198,109040.0,109030.0,0.62792589]
[1756486013057,0.02776989,109040.0,109030.0,0.62591589]
[1756486013296,0.02776989,109040.0,109030.0,0.62792589]
[1756486013661,0.02776989,109040.0,109030.0,0.63092589]
[1756486013916,0.02578989,109040.0,109030.0,0.62892589]
[1756486014462,0.02776989,109040.0,109030.0,0.07456]
[1756486014675,0.02578989,109040.0,109030.0,0.63189589]
[1756486015353,0.02578989,109040.0,109030.0,0.07956]
[1756486015486,0.02578989,109040.0,109030.0,0.63189589]
[1756486017345,0.02578989,109040.0,109030.0,0.07956]
[1756486017550,0.02578989,109040.0,109030.0,0.63189589]
[1756486018594,0.02776989,109040.0,109030.0,0.07456]
[1756486018917,0.08599547,109040.0,109030.0,0.07456]
[1756486019485,0.02776989,109040.0,109030.0,0.07056]
[1756486019914,0.02776989,109040.0,109030.0,0.07156]
[1756486020120,0.02776989,109040.0,109030.0,0.07056]
[1756486020461,0.02776989,109040.0,109030.0,0.07156]
[1756486021445,0.01917326,109040.0,109030.0,0.07156]
[1756486021647,0.02776761,109040.0,109030.0,0.07156]
[1756486022051,0.02776761,109040.0,109030.0,0.62889589]
[1756486022418,0.02578761,109040.0,109030.0,0.62889589]
[1756486027095,0.02776761,109040.0,109030.0,0.07355]
[1756486027216,0.02776761,109040.0,109030.0,0.07656]
[1756486027416,0.02776761,109040.0,109030.0,0.07156]
[1756486027620,0.08599296,109040.0,109030.0,0.07156]
[1756486028275,0.08599296,109040.0,109030.0,0.07355]
[1756486028478,0.02776761,109040.0,109030.0,0.07656]
[1756486028678,0.02776761,109040.0,109030.0,0.07156]
[1756486029713,0.02776761,109040.0,109030.0,0.07656]
[1756486030004,0.02776761,109040.0,109030.0,0.07156]
[1756486030240,0.02776761,109040.0,109030.0,0.001]
[1756486030411,0.64323765,109040.0,109030.0,0.001]
[1756486031106,0.64108765,109040.0,109030.0,0.001]
[1756486031317,0.08875176,109040.0,109030.0,0.001]
[1756486031523,0.64108765,109040.0,109030.0,0.001]
[1756486031717,0.64423765,109040.0,109030.0,0.001]
[1756486032104,0.64425689,109040.0,109030.0,0.001]
[1756486032530,0.091921,109040.0,109030.0,0.001]
[1756486032726,0.089771,109040.0,109030.0,0.001]
[1756486032897,0.091921,109040.0,109030.0,0.001]
[1756486033099,0.64425689,109040.0,109030.0,0.001]
[1756486033303,0.64425689,109040.0,109010.0,0.62599312]
[1756486033520,1.10467178,109020.0,109010.0,8.723e-05]
[1756486033727,6.63741589,109020.0,109010.0,8.723e-05]
[1756486033933,6.74591358,109020.0,109010.0,8.723e-05]
[1756486034562,6.74591358,109020.0,108990.0,0.08177069]
[1756486034773,0.89233589,109000.0,108990.0,0.08191342]
[1756486034969,0.91814274,109000.0,108990.0,0.08191342]
[1756486035173,0.92016274,109000.0,108990.0,0.08191342]
[1756486036082,0.94776374,109000.0,108990.0,0.08191342]
[1756486036719,0.39542785,109000.0,108990.0,0.08291342]
[1756486036892,0.94776374,109000.0,108990.0,0.08291342]
[1756486037760,0.96706578,109000.0,108990.0,0.08791342]
[1756486037986,0.96706578,109000.0,108990.0,0.08391342]
[1756486038208,0.96706578,109000.0,108990.0,0.00214273]
[1756486038830,1.0391202,109000.0,108990.0,0.00214273]
[1756486041009,1.06987114,109000.0,108990.0,0.00214273]
[1756486041416,1.10330001,109000.0,108990.0,0.00214273]
[1756486042019,0.55096412,109000.0,108990.0,0.00214273]
[1756486042336,1.06776114,109000.0,108990.0,0.00214273]
[1756486042766,1.06768181,109000.0,108990.0,0.00214273]
[1756486043798,0.4432915,109000.0,108990.0,0.00416273]
[1756486044010,0.4432915,109000.0,108990.0,0.00741273]
[1756486044011,0.41465056,109000.0,108990.0,0.00741273]
[1756486044265,0.96698645,109000.0,108990.0,0.00741273]
[1756486044470,0.41465056,109000.0,108990.0,0.00741273]
[1756486044799,0.41263056,109000.0,108990.0,0.00741273]
[1756486044996,1.05522277,109000.0,108990.0,0.00741273]
[1756486045313,1.08386371,109000.0,108990.0,0.00214273]
[1756486045659,0.74386371,109000.0,108990.0,0.00214273]
[1756486046127,0.65556739,109000.0,108990.0,0.00214273]
[1756486046526,0.62692645,109000.0,108990.0,0.00214273]
[1756486047058,0.07459056,109000.0,108990.0,0.00214273]
[1756486047924,0.58347562,109010.0,108990.0,0.00214273]
[1756486048130,5.55264589,109000.0,108990.0,0.00539273]
[1756486048325,0.55264589,109000.0,108990.0,0.00539273]
[1756486048679,0.55264589,109000.0,108990.0,0.00741273]
[1756486048823,0.55264589,109000.0,108990.0,0.00641273]
[1756486049444,0.01939946,109000.0,108990.0,0.55874862]
[1756486049644,0.5,109010.0,108990.0,0.55874862]
[1756486049850,5.34,109010.0,109000.0,0.00325]
[1756486050097,0.027599,109020.0,109000.0,0.55558589]
[1756486050295,0.17235862,109040.0,109010.0,0.55760589]
[1756486050296,0.65394451,109040.0,109010.0,0.55760589]
[1756486050495,5.0,109030.0,109010.0,0.00527]
[1756486050696,5.08829632,109030.0,109010.0,0.00527]
[1756486050924,0.42829632,109030.0,109010.0,0.00527]
[1756486052155,0.08829632,109030.0,109010.0,0.00527]
[1756486052562,0.09129632,109030.0,109010.0,0.00527]
[1756486052922,0.34031,109020.0,109010.0,0.00527]
[1756486053126,0.42860632,109020.0,109010.0,0.00527]
[1756486053332,0.42829632,109020.0,109010.0,0.00527]
[1756486053550,0.34,109020.0,109010.0,0.00527]
[1756486054388,0.34031,109020.0,109010.0,0.00425]
[1756486054590,0.34,109020.0,109010.0,0.00627]
[1756486054792,0.34,109020.0,109010.0,0.00727]
[1756486056392,0.42829632,109030.0,109010.0,0.00727]
[1756486056623,0.98063221,109030.0,109010.0,0.00727]
[1756486056825,0.00031,109020.0,109010.0,0.00727]
[1756486057270,0.42829632,109030.0,109010.0,0.00627]
[1756486057473,0.98063221,109030.0,109010.0,0.00627]
[1756486057620,0.98063221,109030.0,109010.0,0.00527]
[1756486057820,0.98063221,109030.0,109000.0,0.62293589]
[1756486058023,0.00491,109020.0,109000.0,0.62293589]
[1756486058237,0.00196,109020.0,109000.0,0.62293589]
[1756486059332,0.00196,109020.0,109010.0,0.00202]
[1756486059739,0.00196,109020.0,109010.0,0.00302]
[1756486059936,0.02773682,109020.0,109010.0,0.00302]
[1756486060381,0.02773682,109020.0,109010.0,0.001]
[1756486060587,0.03068682,109020.0,109010.0,0.001]
[1756486060998,0.02773682,109020.0,109010.0,0.00627]
[1756486061202,0.02773682,109020.0,109010.0,0.001]
[1756486061443,0.02773682,109020.0,109010.0,0.00202]
[1756486061815,0.02773682,109020.0,109010.0,0.00627]
[1756486062394,0.02577682,109020.0,109010.0,0.55860589]
[1756486063045,0.02577682,109020.0,109010.0,0.00627]
[1756486063389,0.02577682,109020.0,109010.0,0.56089925]
[1756486063602,0.02577682,109020.0,109010.0,0.55860589]
[1756486063820,0.36273714,109040.0,109010.0,0.00627]
[1756486064029,0.0485471,109040.0,109020.0,0.55558589]
[1756486064235,0.13684342,109040.0,109020.0,0.55558589]
[1756486064444,0.13684342,109040.0,109020.0,0.00325]
[1756486064685,0.04755556,109040.0,109030.0,0.00202]
[1756486064891,0.04755556,109040.0,109020.0,0.55558589]
[1756486065074,0.05250556,109040.0,109020.0,0.55558589]
[1756486065316,0.05050556,109040.0,109020.0,0.55558589]
[1756486065540,0.00295,109030.0,109010.0,0.00325]
[1756486065717,0.36580842,109030.0,109020.0,0.00202]
[1756486065921,0.36781595,109030.0,109020.0,0.00202]
[1756486066130,0.37076595,109030.0,109010.0,0.55558589]
[1756486066441,0.37076595,109030.0,109010.0,0.00325]
[1756486067382,0.37176391,109030.0,109010.0,0.00325]
[1756486067583,0.37176391,109030.0,109010.0,0.55558589]
[1756486067792,0.37176391,109030.0,109010.0,0.55658589]
[1756486068137,0.43356326,109030.0,109010.0,0.55658589]
[1756486068560,0.37176391,109030.0,109010.0,0.55658589]
[1756486068992,0.00306,109020.0,109000.0,0.101322]
[1756486069150,0.05750732,109020.0,109000.0,0.098192]
[1756486069596,0.05750732,109020.0,109000.0,0.101322]
[1756486069791,0.02886638,109020.0,109000.0,0.101322]
[1756486069994,0.02886638,109020.0,109000.0,0.65365789]
[1756486070505,0.02780638,109020.0,109010.0,0.00201]
[1756486070705,0.02580638,109020.0,109010.0,0.00514]
[1756486072007,0.02580638,109020.0,109010.0,0.00814]
[1756486072835,0.02780638,109020.0,109010.0,0.00601]
[1756486073021,0.02780638,109020.0,109010.0,0.00204557]
[1756486073797,0.03086638,109020.0,109010.0,3.557e-05]
[1756486074007,0.03086638,109020.0,109010.0,0.00204557]
[1756486074212,0.02580638,109020.0,109010.0,0.00204557]
[1756486074423,0.0258135,109020.0,109010.0,0.00204557]
[1756486075309,0.0278135,109020.0,109010.0,0.00204557]
[1756486075512,0.0308735,109020.0,109010.0,0.00204557]
[1756486076281,0.0308735,109020.0,109010.0,3.557e-05]
[1756486076661,0.3708735,109020.0,109010.0,0.00204557]
[1756486077779,0.37087578,109020.0,109010.0,3.557e-05]
[1756486078175,0.40796811,109020.0,109010.0,3.557e-05]
[1756486079397,0.06796811,109020.0,109010.0,3.557e-05]
[1756486079565,0.37087578,109020.0,109010.0,3.557e-05]
[1756486082052,0.03087578,109020.0,109010.0,3.557e-05]
[1756486082252,0.37087578,109020.0,109010.0,3.557e-05]
[1756486083376,0.39951672,109020.0,109010.0,3.557e-05]
[1756486083767,0.94324583,109020.0,109010.0,3.557e-05]
[1756486083963,0.02864094,109010.0,109000.0,0.0706]
[1756486084164,0.39953289,109010.0,109000.0,0.0706]
[1756486084357,0.39953283,109010.0,109000.0,0.0706]
[1756486086472,0.39953283,109010.0,109000.0,0.0726]
[1756486086891,0.39953283,109010.0,109000.0,0.0746]
[1756486087074,0.43888655,109010.0,109000.0,0.0746]
[1756486087389,0.43888581,109010.0,109000.0,0.0746]
[1756486087941,0.41024487,109010.0,109000.0,0.0746]
[1756486088407,0.43888581,109010.0,109000.0,0.0746]
[1756486089613,0.6512217,109010.0,109000.0,0.004]
[1756486089821,0.36864094,109000.0,108980.0,0.07056]
[1756486090018,1.0351043,109000.0,108980.0,0.07056]
[1756486090222,0.00506,108990.0,108980.0,0.07056]
[1756486090480,0.02228056,108990.0,108980.0,0.07257]
[1756486090687,0.03089115,108990.0,108980.0,0.07257]
[1756486090879,0.03088986,108990.0,108980.0,0.07257]
[1756486091202,0.03088986,108990.0,108980.0,0.07056]
[1756486091421,0.37093737,108990.0,108980.0,0.07056]
[1756486091855,0.37093737,108990.0,108980.0,0.07357]
[1756486092082,0.37093737,108990.0,108980.0,0.07156]
[1756486092303,0.37093737,108990.0,108980.0,0.001]
[1756486092509,0.39755889,108990.0,108980.0,0.001]
[1756486092726,0.37093737,108990.0,108980.0,0.001]
[1756486092924,0.38702711,108990.0,108980.0,0.001]
[1756486093330,0.939363,108990.0,108980.0,0.001]
[1756486093545,0.38702711,108990.0,108980.0,0.001]
[1756486094180,0.40473524,108990.0,108980.0,0.001]
[1756486094437,0.93984693,108990.0,108980.0,0.001]
[1756486094650,0.40471984,108990.0,108980.0,0.001]
[1756486094860,0.40471984,108990.0,108980.0,0.00301]
[1756486095062,0.3886301,108990.0,108980.0,0.00301]
[1756486095266,0.3886287,108990.0,108980.0,0.00301]
[1756486095695,0.3886287,108990.0,108980.0,0.001]
[1756486095903,0.3886287,108990.0,108980.0,0.00301]
[1756486096102,0.3886287,108990.0,108980.0,0.001]
[1756486097127,0.47692502,108990.0,108980.0,0.001]
[1756486097723,0.3835687,108990.0,108980.0,0.00301]
[1756486098292,0.38356428,108990.0,108980.0,0.00301]
[1756486099395,0.36585615,108990.0,108980.0,0.62903589]
[1756486099600,0.02585615,108990.0,108980.0,0.62903589]
[1756486101273,0.02585615,108990.0,108980.0,0.62594589]
[1756486101482,0.02585615,108990.0,108980.0,0.62903589]
[1756486103461,0.02585615,108990.0,108980.0,0.0767]
[1756486103670,0.02585485,108990.0,108980.0,0.62903589]
[1756486104861,0.01725197,108990.0,108980.0,0.62903589]
[1756486105082,0.02585504,108990.0,108980.0,0.62903589]
[1756486106220,0.02585504,108990.0,108980.0,1.02903589]
[1756486106584,0.02585504,108990.0,108980.0,1.05389089]
[1756486107187,0.02585504,108990.0,108980.0,1.05489089]
[1756486107588,0.02585504,108990.0,108980.0,1.09712555]
[1756486108093,0.02585504,108990.0,108980.0,1.09812555]
[1756486108833,0.01436092,109030.0,108980.0,1.09812555]
[1756486109045,0.0721143,109020.0,109000.0,0.55233589]
[1756486109238,0.00195,109010.0,109000.0,0.55233589]
[1756486109374,0.00195,109010.0,109000.0,0.55443589]
[1756486109580,0.00195,109010.0,109000.0,0.55752589]
[1756486109984,0.00195,109010.0,109000.0,0.55443589]
[1756486110630,0.00395,109010.0,109000.0,0.55752589]
[1756486110832,0.00715,109010.0,108990.0,0.00309]
[1756486111061,0.00715,109010.0,108990.0,0.55542589]
[1756486111611,0.024821,109010.0,108990.0,0.55542589]
[1756486112366,0.025821,109010.0,108990.0,0.55542589]
[1756486112777,0.023821,109010.0,108990.0,0.55542589]
[1756486112985,0.025821,109010.0,108990.0,0.55542589]
[1756486114253,0.025821,109010.0,109000.0,0.0021]
[1756486114989,0.022621,109010.0,109000.0,0.0021]
[1756486115196,0.021621,109010.0,109000.0,0.0021]
[1756486115580,0.022621,109010.0,109000.0,0.0021]
[1756486115837,0.020621,109010.0,109000.0,0.0021]
[1756486116048,0.022621,109010.0,109000.0,0.00519]
[1756486118180,0.022621,109010.0,109000.0,0.0021]
[1756486119163,0.025821,109010.0,109000.0,0.0021]
[1756486119795,0.022621,109010.0,109000.0,0.0021]
[1756486120031,0.003,109010.0,109000.0,0.55752589]
[1756486120896,0.02580621,109010.0,109000.0,0.55752589]
[1756486121312,0.02680621,109010.0,109000.0,0.55752589]
[1756486121703,0.02580621,109010.0,109000.0,0.55752589]
[1756486122037,0.02780621,109010.0,109000.0,0.55752589]
[1756486122472,0.02580621,109010.0,109000.0,0.00519]
[1756486122683,0.02775621,109010.0,109000.0,0.55752589]
[1756486122894,0.02680621,109010.0,109000.0,0.55752589]
[1756486123095,0.02875621,109010.0,109000.0,0.55752589]
[1756486123302,0.03195621,109010.0,108990.0,0.55542589]
[1756486123734,0.03195621,109010.0,109000.0,0.0021]
[1756486124141,0.02875621,109010.0,109000.0,0.0021]
[1756486124754,0.03195621,109010.0,109000.0,0.0021]
[1756486124959,0.02875621,109010.0,109000.0,0.0021]
[1756486125371,0.02580621,109010.0,109000.0,0.55981946]
[1756486125679,0.02875621,109010.0,109000.0,0.55752589]
[1756486126118,0.02775808,109010.0,109000.0,0.55752589]
[1756486126330,0.02875808,109010.0,109000.0,0.55752589]
[1756486126533,0.21542748,109010.0,109000.0,0.73792212]
[1756486126747,0.21542748,109010.0,109000.0,0.18558623]
[1756486126958,0.03195808,109010.0,109000.0,0.18558623]
[1756486127401,0.21542748,109010.0,109000.0,0.18558623]
[1756486127632,0.21542748,109010.0,109000.0,0.18348623]
[1756486127848,0.21542748,109010.0,109000.0,0.73582212]
[1756486128059,0.21542748,109010.0,108990.0,0.18657782]
[1756486128060,0.18348623,109000.0,108980.0,0.28303534]
[1756486128273,0.00195,108990.0,108980.0,0.81161623]
[1756486128504,0.21126115,108990.0,108980.0,0.25928034]
[1756486128716,0.02775808,108990.0,108980.0,0.25619034]
[1756486128919,0.02775808,108990.0,108980.0,0.80852623]
[1756486129599,0.02775808,108990.0,108980.0,0.81373896]
[1756486129806,0.02581891,108990.0,108980.0,0.81373896]
[1756486130213,0.02795891,108990.0,108980.0,0.25940307]
[1756486130415,0.02795891,108990.0,108980.0,0.81273896]
[1756486130592,0.21246198,108990.0,108980.0,0.81273896]
[1756486130797,0.02895891,108990.0,108980.0,0.81173896]
[1756486131205,0.21539198,108990.0,108980.0,0.07074273]
[1756486131408,0.55539198,108990.0,108980.0,0.07074273]
[1756486131568,1.13434939,108990.0,108980.0,0.00014273]
[1756486132452,0.5820135,108990.0,108980.0,0.00014273]
[1756486132659,1.10772787,108990.0,108980.0,0.00014273]
[1756486132863,1.19502419,108990.0,108980.0,0.00014273]
[1756486133082,0.6426883,108990.0,108980.0,0.00014273]
[1756486133296,1.10872787,108990.0,108980.0,0.00014273]
[1756486134377,1.10972787,108990.0,108980.0,0.00014273]
[1756486134854,1.13634939,108990.0,108980.0,0.00014273]
[1756486135272,0.5840135,108990.0,108980.0,0.00014273]
[1756486135468,1.10972787,108990.0,108980.0,0.00014273]
[1756486135677,1.19802419,108990.0,108980.0,0.00014273]
[1756486136091,6.8060621,108990.0,108980.0,0.00014273]
[1756486136438,6.84803439,108990.0,108980.0,0.00014273]
[1756486136639,6.84800733,108990.0,108980.0,0.00014273]
[1756486137091,6.84700733,108990.0,108980.0,0.00014273]
[1756486137314,6.82121548,108990.0,108980.0,0.00014273]
[1756486137582,6.84899874,108990.0,108980.0,0.00014273]
[1756486137947,6.84699874,108990.0,108980.0,0.00014273]
[1756486138361,6.84999874,108990.0,108980.0,0.00014273]
[1756486138799,7.03350874,108990.0,108980.0,0.00014273]
[1756486139490,7.00688722,108990.0,108980.0,0.00014273]
[1756486139700,6.97780672,108990.0,108980.0,0.00014273]
[1756486140475,5.87313494,108990.0,108980.0,0.00014273]
[1756486140804,6.33717451,108990.0,108980.0,0.00014273]
[1756486141017,6.32280922,108990.0,108980.0,0.00014273]
[1756486141444,6.31987922,108990.0,108980.0,0.00014273]
[1756486141660,6.32280922,108990.0,108980.0,0.00014273]
[1756486141871,6.41110554,108990.0,108980.0,0.00014273]
[1756486142665,6.29520222,108990.0,108980.0,0.00227273]
[1756486143297,6.86847693,108990.0,108980.0,1e-08]
[1756486143496,6.97417895,108990.0,108980.0,1e-08]
[1756486143900,0.18357044,108950.0,108940.0,0.07467]
[1756486144102,0.18357044,108950.0,108940.0,0.00104751]
[1756486144103,1.10675959,108950.0,108940.0,0.00104751]
[1756486144323,1.16246161,108950.0,108940.0,0.00104751]
[1756486144544,1.25075793,108950.0,108940.0,0.00104751]
[1756486144964,1.19505591,108950.0,108940.0,0.00104751]
[1756486145198,1.19505591,108950.0,108940.0,0.00204751]
[1756486145380,1.21903909,108950.0,108940.0,0.00204751]
[1756486145537,0.58549056,108950.0,108940.0,0.00204751]
[1756486145739,1.16280963,108950.0,108940.0,0.00204751]
[1756486145950,1.16277343,108950.0,108940.0,0.00204751]
[1756486146158,0.64215638,108950.0,108940.0,0.00204751]
[1756486146369,1.18939495,108950.0,108940.0,0.00204751]
[1756486146581,1.34628343,108950.0,108940.0,0.00104751]
[1756486146780,1.43457975,108950.0,108940.0,0.00104751]
[1756486147525,0.55020881,108940.0,108930.0,0.0004]
[1756486147738,6.40704529,108940.0,108930.0,0.00087603]
[1756486147942,6.41211529,108940.0,108930.0,0.00087603]
[1756486148153,6.45908259,108940.0,108930.0,0.00087603]
[1756486148794,6.46108259,108940.0,108930.0,0.00087603]
[1756486149214,6.51678461,108940.0,108930.0,0.00087603]
[1756486149423,0.57930616,108930.0,108920.0,0.0004]
[1756486149633,6.42655709,108930.0,108920.0,0.0004]
[1756486149858,6.43162709,108930.0,108920.0,0.0004]
[1756486150085,6.45824861,108930.0,108920.0,0.0004]
[1756486150319,6.43162709,108930.0,108920.0,0.0004]
[1756486150531,6.43362709,108930.0,108920.0,0.0004]
[1756486150733,6.46024861,108930.0,108920.0,0.0004]
[1756486150948,6.48118743,108930.0,108920.0,0.0004]
[1756486151154,7.05548748,108930.0,108920.0,0.0004]
[1756486151360,7.05848748,108930.0,108920.0,0.0004]
[1756486151863,6.48216841,108930.0,108920.0,0.0004]
[1756486152064,6.43216841,108930.0,108920.0,0.0004]
[1756486152512,5.85584934,108930.0,108920.0,0.0004]
[1756486152747,6.43216841,108930.0,108920.0,0.0004]
[1756486152947,6.34387209,108930.0,108920.0,0.0004]
[1756486153435,6.39387209,108930.0,108920.0,0.0004]
[1756486153792,6.84337209,108930.0,108920.0,0.0004]
[1756486154002,6.77313498,108930.0,108920.0,0.0004]
[1756486154408,6.82313498,108930.0,108920.0,0.0004]
[1756486154593,6.8614313,108930.0,108920.0,0.0004]
[1756486154994,7.51437189,108930.0,108920.0,1e-08]
[1756486155245,6.82313498,108930.0,108920.0,1e-08]
[1756486155757,6.77313498,108930.0,108920.0,1e-08]
[1756486155963,7.40515607,108930.0,108920.0,1e-08]
[1756486156236,7.50515607,108930.0,108920.0,1e-08]
[1756486156454,1.09995693,108910.0,108900.0,1e-08]
[1756486156672,6.30915345,108910.0,108900.0,1e-08]
[1756486156884,6.4111777,108910.0,108900.0,1e-08]
[1756486157072,6.41117856,108910.0,108900.0,1e-08]
[1756486157206,6.4741233,108910.0,108900.0,1e-08]
[1756486157429,6.6121338,108910.0,108890.0,1e-08]
[1756486157680,6.17661463,108900.0,108870.0,0.0002]
[1756486157920,1.6763266,108880.0,108870.0,1e-08]
[1756486158130,6.943366,108880.0,108870.0,1e-08]
[1756486158339,7.05553114,108880.0,108870.0,1e-08]
[1756486158546,7.13316814,108880.0,108870.0,1e-08]
[1756486158759,7.19754986,108880.0,108870.0,1e-08]
[1756486159166,6.62123079,108880.0,108870.0,1e-08]
[1756486159859,6.62323079,108880.0,108870.0,1e-08]
[1756486160071,6.62321292,108880.0,108870.0,1e-08]
[1756486160878,0.52370533,108870.0,108860.0,0.12595687]
[1756486161100,5.88260384,108870.0,108860.0,0.12600442]
[1756486161817,6.45892291,108870.0,108860.0,0.12600442]
[1756486162522,6.42984241,108870.0,108860.0,0.12800442]
[1756486162952,6.45892291,108870.0,108860.0,1e-08]
[1756486163308,6.40264023,108870.0,108860.0,1e-08]
[1756486163519,6.40262105,108870.0,108860.0,1e-08]
[1756486163972,6.42355987,108870.0,108860.0,1e-08]
[1756486164187,5.8472408,108870.0,108860.0,1e-08]
[1756486164363,6.31133473,108870.0,108860.0,0.00211001]
[1756486164754,6.34332035,108870.0,108860.0,0.00211001]
[1756486165640,6.35770198,108870.0,108860.0,0.00211001]
[1756486165857,5.78138291,108870.0,108860.0,0.00211001]
[1756486166080,6.35770198,108870.0,108860.0,1e-08]
[1756486166502,6.36069198,108870.0,108860.0,1e-08]
[1756486166826,6.33504165,108870.0,108860.0,1e-08]
[1756486167029,6.36069414,108870.0,108860.0,1e-08]
[1756486167226,6.44899046,108870.0,108860.0,1e-08]
[1756486167872,6.49900978,108870.0,108860.0,1e-08]
[1756486168076,6.57621196,108870.0,108860.0,1e-08]
[1756486168282,6.62989696,108870.0,108860.0,1e-08]
[1756486169291,5.78806007,108870.0,108860.0,1e-08]
[1756486169495,6.36437914,108870.0,108860.0,1e-08]
[1756486169678,0.52372221,108860.0,108850.0,0.00323]
[1756486169857,6.12569377,108860.0,108850.0,0.00337287]
[1756486170257,0.2093747,108860.0,108850.0,0.0077796]
[1756486170503,0.5493747,108860.0,108850.0,0.18922196]
[1756486170930,0.2093747,108860.0,108850.0,0.00548287]
[1756486171157,0.5513747,108860.0,108850.0,0.00548287]
[1756486171589,0.02765249,108860.0,108850.0,0.19151869]
[1756486171798,0.2113747,108860.0,108850.0,0.18922196]
[1756486172010,0.5513747,108860.0,108850.0,0.18922196]
[1756486172650,0.5513747,108860.0,108850.0,0.19222196]
[1756486173357,0.5513747,108860.0,108850.0,0.00848287]
[1756486173799,0.5513747,108860.0,108850.0,0.19451869]
[1756486174005,0.5513747,108860.0,108850.0,0.19222196]
[1756486174210,1.12769377,108860.0,108850.0,0.00848287]
[1756486174414,0.5513747,108860.0,108850.0,0.00848287]
[1756486174590,1.12769377,108860.0,108850.0,0.00848287]
[1756486177369,1.12136326,108860.0,108850.0,0.00314287]
[1756486177587,1.12994926,108860.0,108850.0,0.00525287]
[1756486177785,1.13293926,108860.0,108850.0,0.00314287]
[1756486178011,6.31644926,108860.0,108850.0,0.00314287]
[1756486178215,6.3164541,108860.0,108850.0,0.00314287]
[1756486178352,6.40475042,108860.0,108850.0,0.00314287]
[1756486179483,6.47343042,108860.0,108830.0,0.0004]
[1756486179686,0.18378974,108820.0,108810.0,0.04757714]
[1756486179904,0.20955256,108820.0,108810.0,0.05016367]
[1756486180325,0.78587163,108820.0,108810.0,0.05016367]
[1756486180572,0.78587163,108820.0,108810.0,0.00258653]
[1756486180710,0.78802163,108820.0,108810.0,0.00258653]
[1756486180930,0.78687163,108820.0,108810.0,0.00958653]
[1756486181143,1.12687163,108820.0,108810.0,0.00958653]
[1756486182171,1.12802163,108820.0,108810.0,0.00258653]